bitfinex/quotes_SOLUSD_20250930
["timestamp","ask_amount","ask_price","bid_price","bid_amount"]
[1759271639306,2.37633382,209.38,209.36,34.76]
[1759271639510,20.8,209.4,209.36,34.76]
[1759271639511,23.17633382,209.4,209.36,34.76]
[1759271639720,14.56991715,209.49,209.36,34.76]
[1759271639925,20.8,209.46,209.36,34.76]
[1759271640325,20.8,209.5,209.37,13.59559401]
[1759271640518,20.8,209.5,209.38,0.28432314]
[1759271640833,20.8,209.49,209.39,35.26]
[1759271641036,0.69,209.54,209.4,13.87991715]
[1759271641236,14.3276739,209.56,209.4,34.67991715]
[1759271641407,14.3276739,209.56,209.42,13.87991715]
[1759271641408,19.09967043,209.56,209.42,13.87991715]
[1759271641613,19.09967043,209.56,209.41,4.77532114]
[1759271641614,14.3276739,209.56,209.44,13.87991715]
[1759271641822,2.37633382,209.56,209.48,0.14216157]
[1759271642030,0.69,209.61,209.5,13.87991715]
[1759271642244,5.41372576,209.6,209.5,13.87991715]
[1759271642528,5.41372576,209.62,209.5,13.87991715]
[1759271642728,5.41372576,209.56,209.51,35.28]
[1759271642932,5.41372576,209.58,209.52,35.28]
[1759271643238,5.41372576,209.57,209.53,72.52]
[1759271643445,5.41372576,209.57,209.54,35.32]
[1759271643820,20.8,209.6,209.54,35.32]
[1759271644133,0.69,209.61,209.55,35.32]
[1759271644341,4.77064328,209.62,209.55,35.32]
[1759271644342,20.8,209.59,209.55,35.32]
[1759271644914,5.46022095,209.64,209.55,35.32]
[1759271645115,4.76979937,209.66,209.55,35.32]
[1759271645343,3.71042086,209.64,209.55,35.32]
[1759271645520,3.71042086,209.62,209.55,35.32]
[1759271645716,3.71042086,209.59,209.56,35.3]
[1759271645921,3.71042086,209.6,209.56,35.3]
[1759271646539,0.69,209.59,209.56,35.3]
[1759271646726,3.71042086,209.57,209.53,37.22]
[1759271646920,3.71042086,209.55,209.53,37.22]
[1759271647121,3.71042086,209.54,209.53,37.22]
[1759271647342,0.69,209.57,209.53,72.52]
[1759271647542,14.32698966,209.59,209.53,72.52]
[1759271647744,32.72707177,209.61,209.53,72.52]
[1759271647938,3.71042086,209.59,209.53,72.52]
[1759271648740,3.71042086,209.57,209.53,37.22]
[1759271648945,3.71042086,209.54,209.53,37.22]
[1759271649248,4.40042086,209.54,209.53,37.22]
[1759271649447,9.17277935,209.54,209.53,72.52]
[1759271649634,29.97277935,209.54,209.53,72.52]
[1759271649837,29.97277935,209.54,209.53,37.22]
[1759271650044,29.97277935,209.54,209.53,72.52]
[1759271651238,29.97277935,209.54,209.53,72.5]
[1759271651549,26.26235849,209.54,209.53,72.5]
[1759271651745,29.28277935,209.54,209.53,72.5]
[1759271651938,29.97277935,209.54,209.53,72.5]
[1759271653049,20.8,209.51,209.36,11.9409321]
[1759271653251,3.71042086,209.48,209.39,37.22]
[1759271653433,3.71042086,209.48,209.39,72.46]
[1759271653635,4.77395331,209.47,209.39,77.23563398]
[1759271653950,4.77395331,209.47,209.39,77.23575729]
[1759271654346,8.48437417,209.47,209.39,72.46]
[1759271654547,8.48437417,209.47,209.39,37.22]
[1759271654939,8.48437417,209.47,209.4,35.22]
[1759271655353,3.71042086,209.45,209.39,37.22]
[1759271655529,4.77554918,209.4,209.39,37.22]
[1759271655736,4.77554918,209.4,209.39,72.42]
[1759271656030,14.33726014,209.43,209.39,72.42]
[1759271656233,3.71042086,209.45,209.39,72.42]
[1759271656445,3.71042086,209.46,209.39,72.42]
[1759271656634,3.71042086,209.46,209.39,77.19570462]
[1759271656635,14.33520487,209.46,209.39,77.19570462]
[1759271656834,3.71042086,209.48,209.39,77.19570462]
[1759271657251,22.81809339,209.48,209.39,77.19570462]
[1759271657443,43.61809339,209.48,209.39,77.19570462]
[1759271657950,29.28425838,209.48,209.39,77.19570462]
[1759271658142,41.21857191,209.48,209.39,72.42]
[1759271658341,25.57383752,209.48,209.39,77.19574573]
[1759271658640,29.28425838,209.48,209.39,77.19574573]
[1759271658840,29.28425838,209.48,209.4,37.22]
[1759271659834,29.28425838,209.48,209.4,41.99553838]
[1759271660056,4.77383752,209.48,209.41,35.3]
[1759271660365,3.71042086,209.43,209.42,35.26]
[1759271660677,0.72,209.43,209.42,35.26]
[1759271660963,4.43042086,209.43,209.42,35.26]
[1759271661349,0.72,209.43,209.42,35.26]
[1759271661658,4.43042086,209.43,209.42,35.26]
[1759271661842,9.20528597,209.43,209.42,35.26]
[1759271662158,5.49486511,209.43,209.42,37.22]
[1759271662374,9.20528597,209.43,209.42,37.22]
[1759271662666,20.8,209.43,209.42,37.22]
[1759271663363,20.8,209.43,209.42,72.56]
[1759271663545,9.20464467,209.46,209.42,72.56]
[1759271664060,8.48464467,209.46,209.42,72.56]
[1759271664283,5.48372661,209.48,209.42,72.56]
[1759271664565,8.48414747,209.48,209.42,77.3350377]
[1759271665449,8.48414747,209.48,209.42,72.56]
[1759271666547,24.51042086,209.49,209.42,77.33508726]
[1759271666751,20.8,209.49,209.42,77.33508726]
[1759271667442,3.71042086,209.49,209.42,72.56]
[1759271668058,20.8,209.51,209.43,13.87991715]
[1759271668356,25.57305634,209.51,209.43,18.6546854]
[1759271668939,29.2834772,209.51,209.42,77.33506476]
[1759271669460,41.92608184,209.51,209.42,77.33506476]
[1759271669764,3.71042086,209.5,209.43,35.26]
[1759271669966,4.42042086,209.49,209.43,35.26]
[1759271670469,4.77372541,209.48,209.43,35.26]
[1759271671442,4.77372541,209.48,209.44,35.24]
[1759271671862,4.77338238,209.5,209.44,35.24]
[1759271674173,4.77338238,209.5,209.44,40.0146167]
[1759271674382,20.8,209.51,209.44,40.0146167]
[1759271674579,11.9312338,209.54,209.44,40.0146167]
[1759271674580,4.77236104,209.54,209.45,13.87991715]
[1759271674878,15.64001083,209.57,209.45,13.87991715]
[1759271675058,16.35001083,209.57,209.45,13.87991715]
[1759271675575,9.19232389,209.56,209.45,13.87991715]
[1759271675781,5.48190303,209.56,209.46,35.18]
[1759271675971,21.12208147,209.56,209.46,35.18]
[1759271676172,0.71,209.55,209.46,35.18]
[1759271676579,4.77235849,209.54,209.47,4.77395331]
[1759271677587,0.71,209.55,209.47,4.77395331]
[1759271677773,20.8,209.56,209.48,13.87991715]
[1759271678096,4.77142974,209.59,209.5,13.87991715]
[1759271678586,4.77142974,209.59,209.51,4.77304185]
[1759271678882,0.71,209.58,209.5,18.65316918]
[1759271679086,0.71,209.58,209.5,13.87991715]
[1759271679381,0.71,209.58,209.5,18.65311052]
[1759271679580,3.71042086,209.55,209.51,35.14]
[1759271679760,0.71,209.54,209.52,37.22]
[1759271679961,0.71,209.53,209.52,37.22]
[1759271680359,4.42042086,209.53,209.52,37.22]
[1759271680679,4.42042086,209.53,209.52,72.36]
[1759271680680,9.19300712,209.53,209.52,72.36]
[1759271681857,4.77258626,209.53,209.52,72.36]
[1759271682065,25.57258626,209.53,209.52,72.36]
[1759271682675,26.28258626,209.53,209.52,72.36]
[1759271682872,25.57258626,209.53,209.52,72.36]
[1759271683385,20.8,209.53,209.52,72.36]
[1759271683590,15.6392861,209.58,209.52,72.36]
[1759271683770,21.12128452,209.57,209.52,72.36]
[1759271683976,0.71,209.56,209.52,72.36]
[1759271684866,4.77213075,209.55,209.52,72.36]
[1759271685190,4.77213075,209.55,209.53,35.06]
[1759271686886,0.71,209.54,209.53,35.06]
[1759271687082,9.19277935,209.54,209.53,35.06]
[1759271687669,5.48235849,209.54,209.53,35.06]
[1759271690990,5.48235849,209.54,209.53,34.98]
[1759271691896,4.77235849,209.54,209.53,34.98]
[1759271692189,3.71042086,209.57,209.53,34.98]
[1759271692388,4.77144765,209.58,209.52,37.22]
[1759271692389,0.71,209.55,209.54,34.96]
[1759271693896,4.39042086,209.57,209.54,34.96]
[1759271694073,4.77190303,209.56,209.54,34.96]
[1759271694276,24.51042086,209.6,209.54,34.96]
[1759271694487,5.45122,209.59,209.54,34.96]
[1759271694794,0.68,209.58,209.54,34.96]
[1759271695598,0.68,209.57,209.54,34.96]
[1759271696292,5.45190303,209.56,209.52,37.22]
[1759271696477,0.68,209.55,209.53,34.88]
[1759271696678,0.68,209.54,209.53,34.88]
[1759271697774,20.41208147,209.56,209.53,34.88]
[1759271697978,0.68,209.55,209.53,34.88]
[1759271698180,4.77235849,209.54,209.53,34.88]
[1759271698386,4.77235849,209.54,209.52,37.22]
[1759271698678,5.45235849,209.54,209.53,34.86]
[1759271699095,4.77235849,209.54,209.53,34.86]
[1759271699702,5.45235849,209.54,209.53,34.86]
[1759271700195,4.77235849,209.54,209.53,34.86]
[1759271700395,0.68,209.54,209.53,34.86]
[1759271701589,4.39042086,209.54,209.53,34.84]
[1759271701794,4.77190303,209.56,209.53,34.84]
[1759271701978,4.77144765,209.58,209.53,34.84]
[1759271702385,4.77122,209.59,209.53,34.84]
[1759271702986,16.69927,209.59,209.53,34.84]
[1759271703189,17.37927,209.59,209.53,34.84]
[1759271703394,20.8,209.56,209.52,37.22]
[1759271703607,21.48,209.56,209.53,34.82]
[1759271704430,5.45213075,209.55,209.53,34.82]
[1759271705419,2.20627209,209.54,209.52,37.22]
[1759271705726,16.70245764,209.55,209.53,34.8]
[1759271705907,18.22872973,209.55,209.53,34.8]
[1759271706227,16.70245764,209.55,209.53,34.8]
[1759271706416,11.93032689,209.55,209.53,34.8]
[1759271706619,4.77164267,209.58,209.53,34.8]
[1759271706924,25.57164267,209.58,209.53,34.8]
[1759271707520,4.77125428,209.59,209.53,39.57256945]
[1759271707708,4.77102442,209.6,209.53,39.57256945]
[1759271708024,25.57102442,209.6,209.53,39.57256945]
[1759271708710,2.38579659,209.64,209.54,13.87991715]
[1759271708711,11.92539497,209.64,209.54,13.87991715]
[1759271708900,11.92539497,209.64,209.56,13.59559401]
[1759271709100,11.92539497,209.64,209.57,34.76]
[1759271709607,0.68,209.65,209.57,34.76]
[1759271710411,4.77008204,209.64,209.57,34.76]
[1759271710627,16.69528715,209.64,209.57,34.76]
[1759271710840,16.69528715,209.64,209.57,39.5316258]
[1759271711039,16.69528715,209.64,209.57,34.76]
[1759271712135,40.54569737,209.64,209.56,13.87991715]
[1759271712321,34.67991715,209.55,209.4,37.22]
[1759271712636,2.38579659,209.49,209.41,12.78]
[1759271713132,23.18579659,209.51,209.41,12.78]
[1759271713630,16.70325473,209.54,209.41,33.58]
[1759271713816,4.77235849,209.54,209.44,20.8]
[1759271714021,4.77235849,209.54,209.45,34.7]
[1759271714334,0.68,209.62,209.49,13.59559401]
[1759271714522,0.68,209.62,209.51,13.59559401]
[1759271714726,4.77054364,209.62,209.52,0.28432314]
[1759271714926,4.77054364,209.62,209.54,13.59559401]
[1759271715728,11.92368652,209.67,209.57,20.8]
[1759271715937,11.92368652,209.67,209.58,34.68]
[1759271716134,11.92368652,209.67,209.59,37.22]
[1759271716531,4.76917076,209.69,209.6,4.77099236]
[1759271717026,4.76917076,209.69,209.61,13.59559401]
[1759271717228,4.76917076,209.69,209.62,34.66]
[1759271717829,17.39153234,209.69,209.62,34.66]
[1759271718145,5.46917076,209.69,209.62,34.66]
[1759271718753,5.46917076,209.69,209.62,39.43050378]
[1759271718943,4.76917076,209.69,209.62,39.43050378]
[1759271719451,4.96872804,209.7,209.62,39.43050378]
[1759271719840,0.2,209.7,209.62,39.43050378]
[1759271720042,0.2,209.7,209.63,13.59559401]
[1759271720228,0.2,209.7,209.67,13.59559401]
[1759271720429,0.2,209.7,209.68,34.62]
[1759271720952,0.2,209.7,209.69,4.76894463]
[1759271721337,0.2,209.7,209.69,18.36453864]
[1759271721736,0.2,209.7,209.68,34.62]
[1759271722043,0.2,209.7,209.69,34.6]
[1759271722241,0.2,209.7,209.65,13.59559401]
[1759271722551,0.2,209.7,209.66,34.6]
[1759271723765,0.2,209.7,209.66,39.36962638]
[1759271725264,5.41323538,209.68,209.56,14.29]
[1759271725464,21.46,209.67,209.57,78.03559401]
[1759271725768,6.07323538,209.66,209.57,64.44]
[1759271726239,5.41323538,209.68,209.57,64.44]
[1759271726446,5.41323538,209.68,209.58,13.59559401]
[1759271726659,5.41323538,209.66,209.57,64.44]
[1759271726884,0.66,209.65,209.57,64.44]
[1759271727368,4.77008204,209.64,209.57,64.44]
[1759271728668,4.77008204,209.64,209.57,69.21161721]
[1759271731965,4.77008204,209.64,209.55,153.6]
[1759271731966,0.66,209.63,209.55,20.8]
[1759271732267,5.41323538,209.56,209.51,37.2]
[1759271732470,5.41323538,209.54,209.52,34.98]
[1759271732771,20.8,209.57,209.52,34.98]
[1759271732772,0.66,209.53,209.52,34.98]
[1759271733074,0.66,209.58,209.52,34.98]
[1759271733262,20.8,209.55,209.52,34.98]
[1759271733573,21.46,209.58,209.52,34.98]
[1759271734253,0.66,209.58,209.52,34.98]
[1759271734471,6.07323538,209.58,209.52,34.98]
[1759271734673,0.66,209.58,209.52,34.98]
[1759271734878,20.8,209.59,209.52,39.75280737]
[1759271735060,20.8,209.59,209.52,34.98]
[1759271735061,25.57128198,209.59,209.52,34.98]
[1759271735373,26.23128198,209.59,209.52,34.98]
[1759271738579,5.43128198,209.59,209.52,114.08]
[1759271739058,17.35933198,209.59,209.52,114.08]
[1759271739571,16.85933198,209.59,209.52,114.08]
[1759271739773,16.19933198,209.59,209.49,13.59559401]
[1759271739957,20.8,209.56,209.5,34.92]
[1759271740151,34.39559401,209.52,209.51,34.92]
[1759271740355,34.39559401,209.52,209.36,37.2]
[1759271740356,13.59559401,209.51,209.39,20.8]
[1759271740552,0.66,209.5,209.4,35.0]
[1759271740751,5.4333776,209.5,209.41,4.77532114]
[1759271740975,4.77281405,209.52,209.41,4.77532114]
[1759271741162,4.77281405,209.52,209.44,20.8]
[1759271741473,4.77281405,209.52,209.45,35.0]
[1759271742960,4.27281405,209.52,209.45,35.0]
[1759271743159,0.66,209.51,209.39,0.28432314]
[1759271743494,5.41323538,209.51,209.43,20.8]
[1759271743775,5.41323538,209.51,209.44,34.98]
[1759271744085,4.27281405,209.52,209.44,34.98]
[1759271744881,4.27281405,209.52,209.44,39.75451224]
[1759271745468,4.27281405,209.52,209.45,34.98]
[1759271745677,10.18579538,209.54,209.45,34.98]
[1759271746086,4.77256,209.54,209.45,34.98]
[1759271747276,4.77256,209.54,209.46,4.77418122]
[1759271748292,5.43256,209.54,209.46,4.77418122]
[1759271749166,5.43256,209.54,209.46,4.27418122]
[1759271749974,5.43256,209.54,209.45,39.75439047]
[1759271749975,17.36345624,209.54,209.45,39.75439047]
[1759271750886,17.36345624,209.54,209.45,118.85439047]
[1759271753488,5.43256,209.54,209.45,118.85439047]
[1759271753692,4.77256,209.54,209.45,118.85439047]
[1759271754192,5.49256,209.54,209.45,118.85439047]
[1759271755888,10.18540059,209.55,209.45,263.59041338]
[1759271756085,0.72,209.57,209.45,263.59041338]
[1759271756086,5.49190158,209.57,209.46,0.28432314]
[1759271756272,10.90513696,209.57,209.46,212.18432314]
[1759271756588,10.90513696,209.57,209.46,232.98432314]
[1759271757695,10.90513696,209.57,209.47,4.77395331]
[1759271757874,10.90513696,209.57,209.48,34.8]
[1759271761102,0.72,209.56,209.48,39.5735864]
[1759271761300,22.11432529,209.57,209.49,34.74]
[1759271761301,5.41323538,209.51,209.49,34.74]
[1759271761508,0.72,209.5,209.49,34.74]
[1759271761679,5.41323538,209.52,209.49,34.74]
[1759271761878,6.13323538,209.52,209.49,34.74]
[1759271764190,10.90618429,209.52,209.49,34.74]
[1759271764423,5.49235306,209.55,209.49,34.74]
[1759271764583,5.41323538,209.54,209.49,34.74]
[1759271764787,6.13323538,209.54,209.49,34.74]
[1759271765090,5.41323538,209.54,209.49,34.74]
[1759271765277,0.72,209.53,209.49,34.74]
[1759271766795,10.18577178,209.54,209.49,34.74]
[1759271767097,10.90577178,209.54,209.5,37.22]
[1759271767699,5.4925364,209.54,209.5,37.22]
[1759271768580,4.77215859,209.55,209.51,34.7]
[1759271768788,0.72,209.58,209.51,34.7]
[1759271768983,17.421052,209.57,209.5,37.22]
[1759271769190,0.72,209.56,209.51,34.66]
[1759271769386,4.43199698,209.55,209.51,34.66]
[1759271769688,0.72,209.54,209.51,34.66]
[1759271771401,25.57244844,209.54,209.51,34.66]
[1759271772175,26.29244844,209.54,209.51,34.66]
[1759271772988,25.57244844,209.54,209.51,34.66]
[1759271773190,0.72,209.55,209.51,34.66]
[1759271773391,5.49222594,209.55,209.51,34.66]
[1759271774903,4.77190303,209.56,209.51,34.66]
[1759271775300,5.49190303,209.56,209.51,34.66]
[1759271775809,0.72,209.55,209.51,34.66]
[1759271776600,0.72,209.55,209.52,34.6]
[1759271777314,4.77190303,209.56,209.52,34.6]
[1759271777707,5.49190303,209.56,209.52,34.6]
[1759271778706,5.44230879,209.55,209.52,34.6]
[1759271781917,5.44230879,209.55,209.53,34.48]
[1759271782509,5.44230879,209.55,209.5,37.22]
[1759271782693,5.44230879,209.55,209.51,34.46]
[1759271783123,5.44230879,209.55,209.51,113.56]
[1759271784898,5.44230879,209.55,209.52,34.46]
[1759271785701,0.7,209.54,209.52,34.46]
[1759271785919,4.77230879,209.55,209.52,34.46]
[1759271786132,5.47230879,209.55,209.52,34.46]
[1759271786327,6.99913148,209.55,209.52,34.46]
[1759271786712,4.77230879,209.55,209.52,34.46]
[1759271787420,5.47190303,209.56,209.52,34.46]
[1759271787600,0.7,209.55,209.52,34.46]
[1759271788419,4.77190303,209.56,209.53,34.4]
[1759271788625,0.7,209.55,209.53,34.4]
[1759271789125,0.7,209.55,209.53,113.5]
[1759271789618,4.77190303,209.56,209.53,113.5]
[1759271789929,0.7,209.55,209.53,113.5]
[1759271790924,5.47226861,209.55,209.53,113.5]
[1759271791105,5.47226861,209.55,209.54,37.22]
[1759271792001,4.77190303,209.56,209.54,37.22]
[1759271792202,5.47190303,209.56,209.55,34.36]
[1759271792622,4.77190303,209.56,209.55,34.36]
[1759271793026,4.77190303,209.56,209.54,37.22]
[1759271793319,5.47190303,209.56,209.55,34.34]
[1759271793505,4.77190303,209.56,209.55,34.34]
[1759271794123,5.47190303,209.56,209.55,34.34]
[1759271797314,5.47190303,209.56,209.54,116.32]
[1759271797502,5.47190303,209.56,209.55,34.28]
[1759271797701,4.77190303,209.56,209.55,34.28]
[1759271798406,5.47190303,209.56,209.55,34.28]
[1759271800230,5.47190303,209.56,209.54,116.32]
[1759271800433,5.47190303,209.56,209.55,34.26]
[1759271800808,5.47190303,209.56,209.54,116.32]
[1759271801126,5.47190303,209.56,209.55,34.24]
[1759271806521,5.47190303,209.56,209.54,116.32]
[1759271806827,0.7,209.55,209.54,37.22]
[1759271807131,0.7,209.55,209.54,71.4]
[1759271808033,5.47213075,209.55,209.54,71.4]
[1759271809234,6.99895344,209.55,209.54,71.4]
[1759271809920,6.99895344,209.55,209.54,37.22]
[1759271810129,6.99895344,209.55,209.54,71.4]
[1759271812139,4.77213075,209.55,209.54,71.4]
[1759271812436,5.47167533,209.57,209.54,71.4]
[1759271812624,17.40086366,209.57,209.54,71.4]
[1759271812821,0.7,209.56,209.54,150.5]
[1759271813333,16.70086366,209.57,209.54,150.5]
[1759271813508,20.8,209.54,209.5,37.22]
[1759271813709,20.8,209.54,209.51,34.14]
[1759271813710,1.52682269,209.52,209.51,34.14]
[1759271813936,2.19682269,209.52,209.51,34.14]
[1759271814522,6.96963674,209.52,209.51,34.14]
[1759271817018,4.77281405,209.52,209.51,34.14]
[1759271818820,5.44281405,209.52,209.51,34.14]
[1759271820121,6.96963674,209.52,209.5,37.22]
[1759271820329,6.29963674,209.52,209.51,34.22]
[1759271820922,6.96963674,209.52,209.51,34.22]
[1759271821344,6.96963674,209.52,209.5,37.22]
[1759271821644,6.29963674,209.52,209.51,34.22]
[1759271822643,6.96963674,209.52,209.51,34.22]
[1759271825332,6.29963674,209.52,209.51,34.22]
[1759271825533,6.96963674,209.52,209.51,34.22]
[1759271827541,5.44281405,209.52,209.51,34.22]
[1759271827747,4.77258626,209.53,209.51,34.22]
[1759271828046,5.44258626,209.53,209.51,34.22]
[1759271828229,0.67,209.52,209.51,34.22]
[1759271829249,5.44281405,209.52,209.51,34.22]
[1759271831553,7.82947229,209.52,209.51,34.22]
[1759271831927,7.15947229,209.52,209.51,34.22]
[1759271832128,4.77281405,209.52,209.51,34.22]
[1759271832427,5.44281405,209.52,209.51,34.22]
[1759271832738,4.77281405,209.52,209.51,34.22]
[1759271833239,4.77258626,209.53,209.51,34.22]
[1759271833639,5.44258626,209.53,209.51,34.22]
[1759271833829,4.77258626,209.53,209.51,34.22]
[1759271834029,0.67,209.52,209.51,34.22]
[1759271834536,5.44281405,209.52,209.51,34.22]
[1759271836450,4.77281405,209.52,209.51,34.22]
[1759271838658,19.10322557,209.52,209.51,34.22]
[1759271839064,19.80322557,209.52,209.51,34.22]
[1759271839355,19.10322557,209.52,209.51,34.22]
[1759271840241,19.80322557,209.52,209.51,34.04]
[1759271842957,12.62952572,209.57,209.51,34.04]
[1759271843160,14.3283582,209.55,209.51,34.04]
[1759271845158,19.10067463,209.55,209.51,34.04]
[1759271848554,19.10067463,209.55,209.51,113.14]
[1759271848941,19.79067463,209.55,209.51,113.14]
[1759271851446,19.10067463,209.55,209.51,113.14]
[1759271853462,4.77190303,209.56,209.51,113.14]
[1759271853660,14.3276739,209.56,209.51,117.91295385]
[1759271853866,0.69,209.63,209.52,13.87991715]
[1759271854164,0.69,209.63,209.54,13.59559401]
[1759271854359,0.69,209.63,209.55,34.02]
[1759271854959,20.8,209.66,209.56,34.39559401]
[1759271854960,14.32220179,209.64,209.56,34.39559401]
[1759271855162,0.69,209.66,209.57,34.02]
[1759271855356,0.69,209.66,209.58,4.77144765]
[1759271855558,5.45967051,209.66,209.59,34.02]
[1759271856260,4.76940376,209.67,209.59,34.02]
[1759271857459,4.76940376,209.67,209.6,4.77099236]
[1759271857663,4.76940376,209.67,209.61,34.0]
[1759271859749,4.76940376,209.67,209.61,38.77062818]
[1759271860267,4.76940376,209.67,209.61,117.87062818]
[1759271862158,4.76917207,209.68,209.61,117.87062818]
[1759271863461,0.69,209.68,209.61,117.87062818]
[1759271864273,0.69,209.68,209.56,13.59559401]
[1759271864274,2.38665824,209.62,209.54,37.2]
[1759271864481,2.38665824,209.57,209.54,37.2]
[1759271864653,0.69,209.56,209.55,34.02]
[1759271865261,15.0176739,209.56,209.55,34.04]
[1759271865460,19.78957693,209.56,209.55,34.04]
[1759271867551,19.78957693,209.56,209.55,34.02]
[1759271867552,34.10599275,209.56,209.55,34.02]
[1759271867972,34.10599275,209.56,209.5,37.22]
[1759271868158,2.38665824,209.54,209.51,34.02]
[1759271868469,3.07665824,209.53,209.51,34.02]
[1759271868671,16.71638525,209.53,209.51,34.02]
[1759271868858,0.69,209.52,209.51,34.02]
[1759271869373,15.01972701,209.52,209.51,34.02]
[1759271869776,19.79254106,209.52,209.51,34.02]
[1759271871078,19.10254106,209.52,209.51,34.02]
[1759271873370,19.75254106,209.52,209.51,34.02]
[1759271878780,19.75254106,209.52,209.5,37.22]
[1759271878979,19.75254106,209.52,209.4,37.2]
[1759271878980,20.8,209.49,209.4,37.2]
[1759271879167,0.65,209.48,209.41,71.22]
[1759271879375,0.65,209.47,209.42,34.0]
[1759271879677,0.65,209.46,209.42,34.0]
[1759271880092,0.65,209.45,209.41,37.22]
[1759271880294,14.33246542,209.46,209.42,34.0]
[1759271880473,4.77391374,209.48,209.42,34.0]
[1759271880869,19.10569446,209.48,209.42,34.0]
[1759271881863,4.77349754,209.49,209.42,38.77499505]
[1759271882064,14.33109608,209.48,209.42,38.77499505]
[1759271883174,19.10501537,209.48,209.42,38.77499505]
[1759271884790,4.77349754,209.49,209.42,38.77499505]
[1759271885087,14.33109608,209.48,209.42,38.77499505]
[1759271885286,14.98109608,209.48,209.42,34.0]
[1759271886987,19.75504793,209.48,209.42,38.77506499]
[1759271888588,19.75504793,209.48,209.42,4.77506499]
[1759271888793,19.75504793,209.48,209.43,38.79481299]
[1759271889087,5.42395185,209.48,209.43,34.02]
[1759271889302,0.65,209.47,209.43,34.02]
[1759271890103,5.42399009,209.47,209.43,34.02]
[1759271890304,4.77399009,209.47,209.43,34.02]
[1759271890977,4.77399009,209.47,209.44,37.22]
[1759271891180,4.77399009,209.47,209.45,34.02]
[1759271892711,5.42399009,209.47,209.45,34.02]
[1759271893379,4.77399009,209.47,209.45,34.02]
[1759271893583,5.42399009,209.47,209.45,34.02]
[1759271894600,0.65,209.46,209.44,37.22]
[1759271894803,16.70887336,209.47,209.45,34.02]
[1759271894972,16.70887336,209.47,209.44,37.22]
[1759271894973,15.85879053,209.46,209.44,37.22]
[1759271895180,15.85879053,209.46,209.45,34.02]
[1759271895375,1.52769445,209.46,209.45,34.02]
[1759271895575,15.86221436,209.46,209.44,37.22]
[1759271895813,15.86221436,209.46,209.45,34.02]
[1759271896301,15.86221436,209.46,209.44,37.22]
[1759271896302,16.51221436,209.46,209.44,37.22]
[1759271896505,0.65,209.45,209.44,37.22]
[1759271896681,5.42440916,209.45,209.44,71.24]
[1759271897201,5.42440916,209.45,209.36,37.22]
[1759271897397,0.65,209.44,209.43,37.22]
[1759271898200,14.98726014,209.44,209.43,37.22]
[1759271898500,14.98726014,209.44,209.43,71.24]
[1759271898707,6.95233157,209.44,209.43,71.24]
[1759271900092,6.95233157,209.44,209.43,37.24]
[1759271900093,42.76211001,209.44,209.43,37.24]
[1759271900293,18.88892438,209.44,209.35,0.1]
[1759271900501,1.52769445,209.41,209.35,0.1]
[1759271900684,17.41442215,209.4,209.35,0.1]
[1759271901096,0.7,209.39,209.35,0.1]
[1759271901409,0.7,209.39,209.36,34.02]
[1759271902276,4.77600534,209.38,209.36,34.02]
[1759271903988,16.71442215,209.4,209.36,34.02]
[1759271904288,1.52769445,209.37,209.35,0.1]
[1759271904483,1.52769445,209.37,209.36,34.02]
[1759271904683,2.23769445,209.37,209.36,34.02]
[1759271904906,23.03769445,209.37,209.36,34.02]